bitfinex/quotes_SOLUSD_20250326
["timestamp","ask_amount","ask_price","bid_price","bid_amount"]
[1742999811192,37.24704523,139.91,139.9,0.03]
[1742999816502,22.6182,139.9,139.84,7.151]
[1742999816668,37.24704523,139.87,139.84,7.151]
[1742999818102,22.6182,139.9,139.84,62.27554523]
[1742999818308,37.24704523,139.88,139.84,25.0285]
[1742999818824,37.24704523,139.89,139.84,62.27554523]
[1742999819024,59.86524523,139.9,139.85,37.24704523]
[1742999819228,2.6182,139.9,139.86,37.24704523]
[1742999819615,37.24704523,139.89,139.84,62.27554523]
[1742999820426,81.7,139.95,139.88,37.24704523]
[1742999820427,40.01714523,139.95,139.88,37.24704523]
[1742999820629,84.4701,139.95,139.91,37.24704523]
[1742999820996,37.24704523,139.93,139.88,37.24704523]
[1742999821230,37.24704523,139.92,139.87,62.27014523]
[1742999821523,121.71714523,139.95,139.9,37.24704523]
[1742999821851,2.7701,139.95,139.91,37.24704523]
[1742999822403,2.7701,139.95,139.92,25.0142]
[1742999822727,40.01714523,139.95,139.92,7.1469]
[1742999822901,37.24704523,139.93,139.92,7.1469]
[1742999823103,37.24704523,139.94,139.92,7.1469]
[1742999823429,40.01714523,139.95,139.92,7.1469]
[1742999823599,2.7701,139.95,139.92,25.0142]
[1742999823800,81.7,139.96,139.93,37.24704523]
[1742999824022,37.24704523,139.99,139.94,37.24704523]
[1742999824201,37.24704523,139.98,139.93,37.24704523]
[1742999824401,118.94704523,140.0,139.95,44.39244523]
[1742999824606,37.24704523,139.99,139.95,25.0089]
[1742999825517,57.24704523,139.96,139.89,37.24704523]
[1742999825726,57.24704523,139.96,139.9,7.1479]
[1742999825727,37.24704523,139.93,139.9,7.1479]
[1742999826019,37.24704523,139.93,139.9,25.0178]
[1742999826419,101.7,139.96,139.9,17.8699]
[1742999826420,37.24704523,139.94,139.9,17.8699]
[1742999826607,37.24704523,139.93,139.89,7.1484]
[1742999827006,37.24704523,139.93,139.89,25.0195]
[1742999827899,2.7127,139.95,139.9,37.24704523]
[1742999828102,81.7,139.96,139.91,37.24704523]
[1742999828407,118.94704523,139.96,139.92,25.0142]
[1742999828706,81.7,139.96,139.92,25.0142]
[1742999828910,81.7,139.96,139.92,62.26124523]
[1742999829120,7.56,139.97,139.92,62.26124523]
[1742999829309,7.56,139.97,139.93,37.24704523]
[1742999829510,2.6455,139.99,139.92,62.26124523]
[1742999829730,37.24704523,139.97,139.92,62.26124523]
[1742999830024,37.24704523,139.98,139.93,37.24704523]
[1742999830437,37.24704523,139.97,139.92,62.26124523]
[1742999830602,37.24704523,139.98,139.93,37.24704523]
[1742999830800,84.3455,139.99,139.95,37.24704523]
[1742999831105,37.24704523,140.0,139.95,37.24704523]
[1742999831311,37.24704523,139.99,139.94,37.24704523]
[1742999832227,37.24704523,139.97,139.92,62.26124523]
[1742999832727,37.24704523,139.97,139.92,55.11434523]
[1742999832908,37.24704523,139.94,139.91,7.1474]
[1742999834325,37.24704523,139.95,139.91,7.1474]
[1742999834907,37.24704523,139.94,139.91,7.1474]
[1742999835100,37.24704523,139.92,139.9,0.03]
[1742999835299,37.24704523,139.91,139.9,0.03]
[1742999836006,7.56,139.93,139.9,7.1779]
[1742999836207,37.24704523,139.91,139.9,7.1779]
[1742999836503,37.24704523,139.91,139.9,0.03]
[1742999837709,20.0,139.94,139.9,0.03]
[1742999837923,57.24704523,139.94,139.9,0.03]
[1742999838233,22.7086,139.99,139.92,37.24704523]
[1742999838420,37.24704523,139.96,139.91,37.24704523]
[1742999838612,37.24704523,139.93,139.9,7.1779]
[1742999838805,37.24704523,139.92,139.9,7.1779]
[1742999840716,37.24704523,139.92,139.9,0.03]
[1742999841441,37.24704523,139.93,139.9,0.03]
[1742999841623,27.56,139.95,139.9,37.27704523]
[1742999841949,37.24704523,139.94,139.9,0.03]
[1742999842232,37.24704523,139.91,139.9,0.03]
[1742999843937,39.79694523,139.91,139.9,0.03]
[1742999844619,20.0,139.93,139.9,0.03]
[1742999844821,37.24704523,139.92,139.9,0.03]
[1742999845245,37.24704523,139.91,139.9,0.03]
[1742999845924,20.0,139.93,139.9,0.03]
[1742999846122,57.24704523,139.93,139.9,0.03]
[1742999846329,0.063,139.91,139.9,0.03]
[1742999847226,37.24704523,139.93,139.9,0.03]
[1742999847227,81.7,139.95,139.91,6.6555]
[1742999847535,2.5988,140.0,139.92,37.24704523]
[1742999847536,118.94704523,139.98,139.92,37.24704523]
[1742999847722,81.7,139.97,139.92,37.24704523]
[1742999847932,81.7,139.97,139.94,37.24704523]
[1742999848316,37.24704523,139.98,139.93,37.24704523]
[1742999848524,37.24704523,139.98,139.92,37.24704523]
[1742999848731,37.24704523,139.98,139.93,37.24704523]
[1742999848939,57.24704523,139.97,139.92,25.0142]
[1742999849119,57.24704523,139.97,139.92,62.26124523]
[1742999849120,37.24704523,139.97,139.92,62.26124523]
[1742999849738,20.0,139.99,139.92,62.26124523]
[1742999849942,37.24704523,139.97,139.92,62.26124523]
[1742999850133,57.24704523,139.99,139.93,37.24704523]
[1742999850437,226.24,140.02,139.97,37.24704523]
[1742999850733,226.24,140.02,139.97,7.1443]
[1742999850734,37.24704523,140.01,139.97,7.1443]
[1742999850938,37.24704523,140.0,139.97,7.1443]
[1742999851233,37.24704523,139.99,139.97,7.1443]
[1742999851625,37.24704523,139.98,139.94,7.1459]
[1742999851818,20.0,140.0,139.94,25.0106]
[1742999852018,37.24704523,139.99,139.94,25.0106]
[1742999852218,37.24704523,139.99,139.94,62.25764523]
[1742999852547,37.24704523,140.0,139.95,37.24704523]
[1742999852718,37.24704523,140.0,139.94,62.25764523]
[1742999853548,37.24704523,139.98,139.94,25.0106]
[1742999854218,37.24704523,139.99,139.94,25.0106]
[1742999854417,37.24704523,139.99,139.94,62.25764523]
[1742999855321,37.24704523,139.99,139.94,25.0106]
[1742999855620,37.24704523,139.99,139.94,62.25764523]
[1742999856123,243.48704523,140.02,139.96,37.24704523]
[1742999856326,37.24704523,140.02,139.96,37.24704523]
[1742999856740,37.24704523,140.01,139.96,37.24704523]
[1742999857133,37.24704523,140.01,139.97,25.0052]
[1742999857822,37.24704523,140.02,139.97,25.0052]
[1742999858022,37.24704523,140.03,139.97,62.25224523]
[1742999858248,59.79194523,140.04,139.99,37.24704523]
[1742999858424,0.0001,140.05,140.01,37.24704523]
[1742999858626,0.0001,140.05,140.02,37.24704523]
[1742999859026,0.0001,140.05,140.03,44.38834523]
[1742999859237,0.0001,140.05,140.04,37.24704523]
[1742999859839,0.0001,140.05,140.03,44.38834523]
[1742999860119,0.0001,140.05,140.03,7.1413]
[1742999860520,37.24704523,140.04,140.03,7.1413]
[1742999860748,37.24704523,140.04,140.01,7.1423]
[1742999860934,37.24704523,140.02,139.98,7.1438]
[1742999861244,37.24704523,140.02,139.98,17.8596]
[1742999861469,37.24704523,139.99,139.97,7.1443]
[1742999861625,37.24704523,139.98,139.94,17.8645]
[1742999861826,37.24704523,139.97,139.94,17.8645]
[1742999862729,37.24704523,139.98,139.94,17.8645]
[1742999862937,27.56,140.02,139.94,55.11154523]
[1742999863126,2.5791,140.04,139.99,37.24704523]
[1742999863327,2.5791,140.04,139.98,25.0034]
[1742999863328,0.0001,140.05,140.01,37.24704523]
[1742999863733,0.0001,140.05,140.0,37.24704523]
[1742999863946,37.24704523,140.03,139.99,7.54]
[1742999864146,37.24704523,140.04,139.99,44.78704523]
[1742999865128,37.24704523,140.04,140.0,24.9999]
[1742999867263,0.0001,140.05,140.0,24.9999]
[1742999867428,37.24704523,140.04,140.0,24.9999]
[1742999867763,37.24704523,140.03,140.0,24.9999]
[1742999867925,37.24704523,140.04,140.0,24.9999]
[1742999868131,37.24704523,140.01,140.0,7.1428]
[1742999868547,37.24704523,140.02,140.0,7.1428]
[1742999868754,81.7,140.03,140.0,7.1428]
[1742999868950,81.7,140.03,140.0,24.9999]
[1742999869258,118.94704523,140.03,140.0,17.8571]
[1742999869454,81.7,140.03,140.0,17.8571]
[1742999870036,118.94704523,140.03,139.99,7.1433]
[1742999870473,81.7,140.03,139.99,62.24874523]
[1742999870766,7.54,140.04,139.99,62.24874523]
[1742999870931,7.54,140.04,140.0,37.24704523]
[1742999871134,37.24714523,140.05,140.0,37.24704523]
[1742999871334,37.24714523,140.05,140.01,24.9981]
[1742999871547,0.0001,140.05,140.01,62.24514523]
[1742999871741,0.03,140.04,140.01,24.9981]
[1742999872043,37.24704523,140.03,140.01,7.1423]
[1742999872248,37.27704523,140.04,140.01,7.1423]
[1742999873036,0.03,140.04,140.01,24.9981]
[1742999873261,0.03,140.04,140.01,62.24514523]
[1742999873640,0.03,140.04,140.01,24.9981]
[1742999873837,0.03,140.04,140.01,62.24514523]
[1742999875761,37.24704523,140.03,140.01,7.1423]
[1742999875946,37.24704523,140.02,140.01,7.1423]
[1742999876453,37.27704523,140.04,140.01,7.1423]
[1742999877052,37.27704523,140.04,139.99,55.10524523]
[1742999877053,37.24704523,140.03,140.0,7.1428]
[1742999877253,37.27704523,140.04,140.0,24.9999]
[1742999877757,0.03,140.04,140.0,62.24694523]
[1742999877968,0.03,140.04,140.02,37.24704523]
[1742999878337,0.03,140.04,140.03,37.24704523]
[1742999879466,0.03,140.04,140.03,44.38834523]
[1742999880644,0.03,140.04,140.03,7.1413]
[1742999880846,0.03,140.04,140.03,44.38834523]
[1742999881369,0.03,140.04,140.01,24.9981]
[1742999881564,0.03,140.04,140.02,37.24704523]
[1742999881755,0.03,140.04,140.03,37.24704523]
[1742999881954,0.0001,140.05,140.03,55.89669409]
[1742999882162,0.0001,140.05,140.04,55.89669409]
[1742999882640,0.063,140.1,140.04,55.89669409]
[1742999882849,81.7,140.15,140.1,18.64964886]
[1742999883046,84.3657,140.17,140.12,37.24704523]
[1742999883347,121.61274523,140.17,140.13,24.9767]
[1742999884547,84.3657,140.17,140.13,62.22374523]
[1742999885746,81.763,140.17,140.13,62.22374523]
[1742999886378,81.763,140.17,140.14,37.24704523]
[1742999886680,0.063,140.17,140.16,55.89669409]
[1742999886971,0.063,140.17,140.16,37.24704523]
[1742999887176,0.063,140.17,140.15,37.24704523]
[1742999887349,0.063,140.17,140.13,62.22374523]
[1742999887550,0.063,140.17,140.14,37.24704523]
[1742999888491,0.0001,140.17,140.16,37.24704523]
[1742999888651,0.0001,140.17,140.16,55.89669409]
[1742999889473,0.0001,140.17,140.16,63.03139409]
[1742999891581,0.0001,140.17,140.16,7.1347]
[1742999892054,0.0001,140.17,140.14,7.1357]
[1742999893228,37.24714523,140.17,140.14,7.1357]
[1742999893388,37.24704523,140.16,140.14,7.1357]
[1742999893585,118.94704523,140.15,140.1,7.1377]
[1742999893925,81.7,140.15,140.1,7.1377]
[1742999894081,37.24704523,140.14,140.1,7.1377]
[1742999894287,118.94704523,140.15,140.1,7.1377]
[1742999894487,37.24704523,140.14,140.1,7.1377]
[1742999894789,37.24704523,140.14,140.1,24.982]
[1742999894996,37.24704523,140.14,140.1,7.1377]
[1742999895407,118.94704523,140.15,140.1,44.38474523]
[1742999895711,81.7,140.15,140.11,37.24704523]
[1742999895912,118.94704523,140.15,140.1,62.29204523]
[1742999896815,37.24704523,140.13,140.1,7.2007]
[1742999896992,118.94704523,140.15,140.1,62.29204523]
[1742999897404,118.94704523,140.15,140.1,25.045]
[1742999897605,37.24704523,140.14,140.1,25.045]
[1742999897809,37.24704523,140.13,140.1,7.2007]
[1742999899695,37.24704523,140.13,140.1,0.063]
[1742999899894,37.24704523,140.12,140.1,0.063]
[1742999901010,37.24704523,140.11,140.1,0.063]
[1742999901910,37.24704523,140.12,140.1,0.063]
[1742999902207,37.24704523,140.11,140.1,0.063]
[1742999902805,59.91974523,140.11,140.1,0.063]
[1742999903023,2.6727,140.11,140.1,0.063]
[1742999903409,81.7,140.13,140.1,0.063]
[1742999904325,81.7,140.13,140.1,37.31004523]
[1742999904618,81.7,140.13,140.1,0.063]
[1742999904814,81.7,140.13,140.1,37.31004523]
[1742999905019,2.5986,140.15,140.11,37.24704523]
[1742999905221,2.5986,140.15,140.12,37.24704523]
[1742999905402,81.7,140.16,140.13,37.24704523]
[1742999905710,81.7,140.16,140.11,37.24704523]
[1742999905917,81.7,140.16,140.12,44.38374523]
[1742999906108,118.94704523,140.16,140.12,24.9785]
[1742999906299,37.24704523,140.15,140.12,7.1367]
[1742999906500,37.24704523,140.13,140.1,0.063]
[1742999906694,37.24704523,140.11,140.1,0.063]
[1742999907111,57.24704523,140.11,140.1,0.063]
[1742999907414,20.0,140.09,140.05,7.1401]
[1742999907614,37.24704523,140.07,140.05,7.1401]
[1742999907921,37.24704523,140.07,140.03,24.9946]
[1742999908122,37.24704523,140.06,140.03,24.9946]
[1742999908317,27.52,140.09,140.01,7.1423]
[1742999908318,37.24704523,140.04,140.01,7.1423]
[1742999908498,81.7,140.08,140.01,62.24514523]
[1742999908693,37.24704523,140.05,140.01,24.9981]
[1742999908913,37.24704523,140.03,140.01,7.1423]
[1742999909301,138.94704523,140.07,140.01,7.1423]
[1742999909505,37.24704523,140.04,140.01,24.9981]
[1742999909698,37.24704523,140.03,140.01,7.1423]
[1742999909897,138.94704523,140.07,139.98,25.0024]
[1742999909898,37.24704523,140.02,139.98,25.0024]
[1742999910429,37.24704523,139.99,139.96,7.1448]
[1742999910604,37.24704523,139.97,139.96,7.1448]
[1742999911001,37.24704523,139.97,139.95,0.063]
[1742999911208,37.24704523,139.96,139.95,0.063]
[1742999911404,37.24704523,139.97,139.95,0.063]
[1742999911615,118.94704523,139.98,139.95,7.2084]
[1742999911816,37.24704523,139.97,139.95,0.063]
[1742999912012,81.7,139.98,139.95,0.063]
[1742999912217,81.7,139.98,139.95,37.31004523]
[1742999912904,81.7,139.98,139.96,37.24704523]
[1742999913116,118.94704523,140.04,139.97,37.24704523]
[1742999913323,118.94704523,140.04,139.99,37.24704523]
[1742999914026,2.5107,140.06,140.03,0.20873254]
[1742999914210,2.5107,140.06,140.03,37.45577777]
[1742999914604,39.75774523,140.06,140.03,0.20873254]
[1742999914823,37.24704523,140.05,140.03,0.20873254]
[1742999915013,2.5107,140.06,140.03,0.20873254]
[1742999915212,2.5107,140.06,140.03,37.45577777]
[1742999915822,2.5107,140.06,140.03,0.20873254]
[1742999916128,2.5107,140.06,140.04,7.1408]
[1742999916326,37.24704523,140.05,140.04,7.1408]
[1742999916628,118.94704523,140.05,140.04,7.1408]
[1742999917125,118.94704523,140.05,140.03,7.34983254]
[1742999917322,37.24704523,140.04,140.03,7.34983254]
[1742999917506,118.94704523,140.05,140.03,7.34983254]
[1742999918127,81.7,140.05,140.03,7.34983254]
[1742999918303,2.5107,140.06,140.03,25.20313254]
[1742999919447,37.24704523,140.05,140.03,7.34983254]
[1742999919637,37.24704523,140.04,140.03,7.34983254]
[1742999920133,118.94704523,140.05,140.03,7.34983254]
[1742999920517,81.7,140.05,140.03,7.34983254]
[1742999920717,81.7,140.08,140.04,37.24704523]
[1742999920928,81.7,140.08,140.06,37.24704523]
[1742999921412,2.6383,140.1,140.06,37.24704523]
[1742999921606,39.88534523,140.1,140.04,55.89669409]
[1742999921936,39.88534523,140.1,140.03,7.34983254]
[1742999921937,37.24704523,140.05,140.03,7.34983254]
[1742999922126,37.24704523,140.04,140.03,7.34983254]
[1742999923711,37.24704523,140.04,140.03,0.20873254]
[1742999927423,138.94704523,140.05,140.03,7.35003254]
[1742999927620,118.94704523,140.05,140.03,7.35003254]
[1742999927835,37.24704523,140.04,140.03,7.35003254]
[1742999928914,37.24704523,140.04,140.03,0.20873254]
[1742999929319,45.89134523,140.04,140.03,0.20873254]
[1742999929517,20.0,140.01,139.95,17.9264]
[1742999929747,37.24704523,139.99,139.96,7.1448]
[1742999930733,37.24704523,140.0,139.95,55.17344523]
[1742999930939,2.5204,140.04,139.99,37.24704523]
[1742999931136,37.24704523,140.03,139.98,37.24704523]
[1742999931436,37.24704523,140.01,139.96,37.24704523]
[1742999931861,37.24704523,140.02,139.96,37.24704523]
[1742999932039,37.24704523,140.02,139.97,37.24704523]
[1742999933051,39.76744523,140.04,139.99,37.24704523]
[1742999933260,2.5204,140.04,139.99,37.24704523]
[1742999933558,39.76744523,140.04,139.99,37.24704523]
[1742999935666,2.5204,140.04,140.0,24.9999]
[1742999936040,118.94704523,140.05,140.0,24.9999]
[1742999936236,2.5363,140.07,140.02,37.24704523]
[1742999936435,2.5363,140.07,140.03,37.24704523]
[1742999937035,37.24704523,140.08,140.03,37.24704523]
[1742999937370,37.24704523,140.08,140.01,18.64964886]
[1742999937371,118.94704523,140.09,140.04,37.24704523]
[1742999937847,118.94704523,140.09,140.03,37.24704523]
[1742999938360,37.24704523,140.05,140.02,7.1418]
[1742999938656,37.24704523,140.03,140.0,7.1428]
[1742999938845,37.24704523,140.01,140.0,7.1428]
[1742999939034,37.24704523,140.01,139.98,7.1438]
[1742999939233,81.7,140.02,139.98,62.25044523]
[1742999940158,118.94704523,140.02,139.98,25.0034]
[1742999940338,81.7,140.02,139.98,25.0034]
[1742999940957,81.7,140.02,139.98,62.25044523]
[1742999941535,81.7,140.02,139.98,25.0034]
[1742999941953,2.6063,140.04,139.98,62.25044523]
[1742999942145,81.7,140.09,140.03,37.24704523]
[1742999942333,206.13,140.1,140.06,37.24704523]
[1742999942531,37.24704523,140.09,140.04,37.24704523]
[1742999942736,37.24704523,140.07,140.02,37.24704523]
[1742999942931,81.7,140.08,140.04,37.24704523]
[1742999943232,81.7,140.08,140.05,37.24704523]
[1742999943437,81.7,140.08,140.01,7.52]
[1742999943438,37.24704523,140.08,140.01,7.52]
[1742999943636,37.24704523,140.06,140.01,37.24704523]
[1742999943840,101.7,140.07,139.98,184.4695]
[1742999943841,37.24704523,140.04,140.0,7.1428]
[1742999944247,118.94704523,140.05,140.0,7.1428]
[1742999944762,81.7,140.05,140.0,24.9999]
[1742999944957,81.7,140.05,140.0,62.24694523]
[1742999945160,2.6273,140.03,139.99,7.1431]
[1742999945365,2.6273,140.03,139.99,44.39014523]
[1742999945547,104.4325,140.07,140.01,37.24704523]
[1742999945862,81.7,140.06,140.03,7.1413]
[1742999946163,0.03,140.04,140.03,44.38834523]
[1742999946464,0.03,140.04,140.03,62.24164523]
[1742999946756,0.03,140.04,140.03,7.1413]
[1742999946967,0.03,140.04,140.02,7.1416]
[1742999947141,37.27704523,140.04,140.0,7.1424]
[1742999947343,37.24704523,140.03,140.0,7.1424]
[1742999947545,37.24704523,140.01,139.98,7.1438]
[1742999947940,37.24704523,140.01,139.97,0.063]
[1742999948274,37.24704523,140.0,139.97,0.063]
[1742999948646,37.24704523,139.98,139.97,0.063]
[1742999948950,81.7,140.01,139.97,37.31004523]
[1742999949153,2.6686,140.03,139.99,37.24704523]
[1742999949336,2.6686,140.03,139.98,37.24704523]
[1742999949740,39.91564523,140.03,139.98,37.24704523]
[1742999949941,2.6686,140.03,140.0,7.1428]
[1742999950144,2.6686,140.03,139.98,7.1438]
[1742999950342,2.6686,140.03,139.98,62.25044523]
[1742999950960,39.91564523,140.03,139.98,62.25044523]
[1742999951862,39.91564523,140.03,139.97,7.2072]
[1742999951863,37.24704523,140.0,139.97,7.2072]
[1742999952046,37.24704523,139.99,139.97,0.063]
[1742999952647,37.24704523,139.98,139.97,0.063]
[1742999953566,125.04154523,140.0,139.97,0.063]
[1742999953567,81.7,140.0,139.97,0.063]
[1742999953960,37.24704523,139.98,139.97,0.063]
[1742999954955,118.94704523,140.0,139.97,0.063]
[1742999955948,81.7,140.0,139.97,0.063]
[1742999956155,37.24704523,140.02,139.97,37.31004523]
[1742999956683,37.24704523,140.02,139.97,0.063]
[1742999956881,37.24704523,140.01,139.97,0.063]
[1742999957170,37.24704523,140.02,139.97,37.31004523]
[1742999958146,37.24704523,140.02,139.98,7.1438]
[1742999958350,141.61564523,140.03,139.98,7.1438]
[1742999958654,37.24704523,140.02,139.98,7.1438]
[1742999959162,57.24704523,140.0,139.97,7.2072]
[1742999959885,57.24704523,140.01,139.97,7.2072]
[1742999960188,141.61564523,140.03,139.98,37.24704523]
[1742999961058,121.61564523,140.03,139.98,37.24704523]
[1742999961284,84.3686,140.03,139.99,37.24704523]
[1742999961466,84.3686,140.03,139.98,37.24704523]
[1742999961658,121.61564523,140.03,139.98,37.24704523]
[1742999962080,121.61564523,140.03,139.99,7.1433]
[1742999962373,84.3686,140.03,140.0,37.24704523]
[1742999962579,0.03,140.04,140.01,37.24704523]
[1742999963071,0.03,140.04,140.03,37.24704523]
[1742999963275,2.7562,140.07,140.03,37.24704523]
[1742999963450,0.03,140.1,140.06,37.24704523]
[1742999963654,0.03,140.1,140.09,37.24704523]
[1742999964060,0.03,140.1,140.09,44.38524523]
[1742999964265,0.03,140.1,140.08,7.1385]
[1742999964677,57.24704523,140.09,139.99,77.5319]
[1742999964887,37.24704523,140.07,140.02,37.24704523]
[1742999965090,37.24704523,140.07,140.01,37.24704523]
[1742999965465,37.24704523,140.06,140.01,37.24704523]
[1742999965687,57.24704523,140.07,140.01,37.24704523]
[1742999965878,57.24704523,140.07,140.02,37.24704523]
[1742999966491,37.24704523,140.06,140.02,7.1416]
[1742999966690,37.24704523,140.03,139.98,25.0033]
[1742999966893,37.24704523,140.03,139.98,62.25044523]
[1742999967076,37.24704523,140.04,139.99,37.24704523]
[1742999967894,37.24704523,140.02,139.98,7.1438]
[1742999968268,39.77084523,140.01,139.97,7.2072]
[1742999968471,47.36884523,140.05,139.99,37.24704523]
[1742999968680,37.24704523,140.04,139.99,37.24704523]
[1742999968972,57.24704523,140.02,139.97,0.063]
[1742999969269,57.24704523,140.02,139.97,37.31004523]
[1742999969577,37.24704523,140.01,139.97,0.063]
[1742999969777,37.24704523,140.0,139.97,0.063]
[1742999970461,37.24704523,140.02,139.97,37.31004523]
[1742999970700,0.03,140.03,139.99,37.24704523]
[1742999970873,0.03,140.03,139.97,0.063]
[1742999971072,0.03,140.03,140.01,37.24704523]
[1742999971463,0.03,140.03,140.02,37.24704523]
[1742999971892,0.03,140.03,140.01,37.24704523]
[1742999972276,0.03,140.03,140.0,37.24704523]
[1742999972588,0.03,140.03,140.01,44.38934523]
[1742999973088,0.03,140.03,140.02,37.24704523]
[1742999973790,0.03,140.03,140.01,44.38934523]
[1742999974498,0.03,140.03,140.02,37.24704523]
[1742999974682,0.03,140.03,140.02,44.38884523]
[1742999974986,0.0001,140.03,140.02,44.38884523]
[1742999975187,0.0001,140.03,140.02,63.03849409]
[1742999976305,0.0001,140.03,140.02,44.38884523]
[1742999976598,0.0001,140.03,140.02,7.1418]
[1742999976773,0.0001,140.03,140.01,44.38934523]
[1742999978102,0.0001,140.03,140.01,7.1423]
[1742999978683,0.0001,140.03,140.0,7.1428]
[1742999978882,37.24704523,140.01,139.98,7.1438]
[1742999979183,37.24704523,140.0,139.98,7.1438]
[1742999979893,44.74704523,140.01,139.98,7.1438]
[1742999980097,7.5,140.01,139.98,7.1438]
[1742999981198,7.5,140.01,139.97,7.2071]
[1742999981394,7.5,140.01,139.97,44.45414523]
[1742999981592,138.94704523,140.02,139.98,37.24704523]
[1742999981593,81.7,140.02,139.98,37.24704523]
[1742999982005,2.5893,140.03,140.0,37.24704523]
[1742999982582,0.0001,140.03,140.01,37.24704523]
[1742999982892,0.0001,140.03,140.02,44.38884523]
[1742999983091,0.0001,140.03,140.02,63.03849409]
[1742999984113,0.0001,140.03,140.02,7.1418]
[1742999984809,0.0001,140.03,140.01,7.1423]
[1742999985012,0.0001,140.03,140.01,44.38934523]
[1742999985182,0.0001,140.03,140.02,37.24704523]
[1742999985379,0.0001,140.04,140.03,18.64964886]
[1742999985607,0.0001,140.04,140.03,55.89669409]
[1742999987034,0.0001,140.04,140.03,63.03799409]
[1742999988099,0.0001,140.04,140.03,145.03799409]
[1742999989584,0.03,140.1,140.03,198.59789409]
[1742999989790,0.03,140.1,140.09,37.24704523]
[1742999990014,81.7,140.13,140.09,37.24704523]
[1742999990189,2.7198,140.14,140.1,37.24704523]
[1742999990698,37.24704523,140.13,140.08,37.24704523]
[1742999990897,2.7198,140.14,140.1,37.24704523]
[1742999991102,2.7198,140.14,140.11,44.38424523]
[1742999991297,2.7198,140.14,140.11,24.9803]
[1742999991501,2.7198,140.14,140.11,7.1372]
[1742999991699,2.7198,140.14,140.12,37.24704523]
[1742999992035,0.0001,140.17,140.13,37.24704523]
[1742999992307,0.0001,140.17,140.14,37.24704523]
[1742999992991,0.0001,140.17,140.13,37.24704523]
[1742999993186,37.24714523,140.17,140.14,7.1357]
[1742999993494,37.24704523,140.15,140.13,7.136]
[1742999993701,37.24704523,140.15,140.11,7.1368]
[1742999994012,37.24704523,140.16,140.11,7.1368]
[1742999994809,37.24704523,140.15,140.11,7.1368]
[1742999994989,37.24704523,140.14,140.1,7.1375]
[1742999995189,37.24704523,140.13,140.09,7.1382]
[1742999995794,37.27704523,140.14,140.09,44.38524523]
[1742999996111,0.03,140.14,140.1,37.24704523]
[1742999996605,0.03,140.14,140.11,37.24704523]
[1742999997189,0.03,140.14,140.12,7.1367]
[1742999997702,37.27704523,140.14,140.09,55.09264523]
[1742999997902,0.03,140.14,140.1,37.24704523]
[1742999998110,0.03,140.14,140.07,44.38624523]
[1742999998111,37.27704523,140.14,140.09,37.24704523]
[1742999998518,0.03,140.14,140.1,37.24704523]
[1742999998699,0.03,140.14,140.11,37.24704523]
[1742999999424,0.03,140.14,140.12,7.1367]
[1743000000305,37.27704523,140.14,140.09,37.24704523]
[1743000000805,37.27704523,140.14,140.1,7.1375]
[1743000001009,0.03,140.14,140.1,44.38454523]
[1743000001209,0.03,140.14,140.11,37.24704523]
[1743000001401,0.03,140.14,140.12,7.1367]
[1743000002108,0.03,140.14,140.13,37.24704523]
[1743000002509,0.03,140.14,140.12,44.38374523]
[1743000002705,0.03,140.14,140.12,7.1367]
[1743000003025,0.03,140.14,140.13,37.24704523]
[1743000003404,0.03,140.14,140.12,7.1367]
[1743000004900,0.03,140.14,140.13,37.24704523]
[1743000005321,0.03,140.14,140.12,44.38374523]
[1743000005504,0.03,140.14,140.12,7.1367]
[1743000005915,0.03,140.14,140.12,44.38374523]
[1743000006638,0.03,140.14,140.13,37.24704523]
[1743000007637,0.03,140.14,140.1,62.29204523]
[1743000007846,0.03,140.14,140.1,25.045]
[1743000008023,0.03,140.14,140.1,62.29204523]
[1743000008221,0.03,140.14,140.11,37.24704523]
[1743000008429,0.03,140.14,140.13,37.24704523]
[1743000009226,0.03,140.14,140.12,37.24704523]
[1743000009440,0.03,140.14,140.11,37.24704523]
[1743000009734,0.03,140.14,140.12,7.1367]